[Event "*** SCC Grand Prix: Titled Tuesday Blitz"]
[Site "Chess.com"]
[Date "2020.09.08"]
[Round "5"]
[White "champ1000"]
[Black "Thjop"]
[Result "0-1"]
[WhiteElo "2288"]
[BlackElo "2620"]
[TimeControl "180+1"]
[EndTime "10:57:27 PDT"]
[Termination "Thjop won on time"]

1. e4 {[%clk 0:00:39.9]} 1... e6 {[%clk 0:02:58.7]} 2. d4 {[%clk 0:00:39.9]}
2... d5 {[%clk 0:02:59.2]} 3. Nc3 {[%clk 0:00:39.7]} 3... Nf6 {[%clk 0:02:59.2]}
4. Bg5 {[%clk 0:00:39.4]} 4... Bb4 {[%clk 0:02:58.9]} 5. e5 {[%clk 0:00:38.6]}
5... h6 {[%clk 0:02:58.9]} 6. Bc1 {[%clk 0:00:38.8]} 6... Ne4 {[%clk 0:02:58.5]}
7. Qg4 {[%clk 0:00:39.5]} 7... g6 {[%clk 0:02:58.9]} 8. Ne2 {[%clk 0:00:38.9]}
8... c5 {[%clk 0:02:57.1]} 9. a3 {[%clk 0:00:39.3]} 9... Nxc3 {[%clk 0:02:54.3]}
10. bxc3 {[%clk 0:00:40.2]} 10... Ba5 {[%clk 0:02:50.1]} 11. h4 {[%clk 0:00:31]}
11... Nc6 {[%clk 0:02:46.5]} 12. Bd2 {[%clk 0:00:28.8]} 12... cxd4 {[%clk
0:02:35.5]} 13. cxd4 {[%clk 0:00:29.7]} 13... Bxd2+ {[%clk 0:02:35.7]} 14. Kxd2
{[%clk 0:00:30.6]} 14... Qa5+ {[%clk 0:02:36]} 15. Nc3 {[%clk 0:00:17.1]} 15...
Bd7 {[%clk 0:02:17.6]} 16. Rb1 {[%clk 0:00:16.1]} 16... Rc8 {[%clk 0:02:14.2]}
17. Rh3 {[%clk 0:00:15.6]} 17... b6 {[%clk 0:02:00.3]} 18. h5 {[%clk 0:00:15]}
18... g5 {[%clk 0:01:59.7]} 19. Rb5 {[%clk 0:00:11.7]} 19... Qxa3 {[%clk
0:01:57.2]} 20. Nxd5 {[%clk 0:00:10.4]} 20... Qa1 {[%clk 0:01:50.8]} 21. Nf6+
{[%clk 0:00:10.1]} 21... Ke7 {[%clk 0:01:46.3]} 22. Nxd7 {[%clk 0:00:07.5]}
22... Rhd8 {[%clk 0:01:34.8]} 23. Bd3 {[%clk 0:00:04]} 23... Rxd7 {[%clk
0:01:31.9]} 24. c3 {[%clk 0:00:01.5]} 24... Nxe5 {[%clk 0:01:09.2]} 25. dxe5
{[%clk 0:00:01.3]} 25... Qxc3+ {[%clk 0:01:09.5]} 26. Ke2 {[%clk 0:00:01.4]}
26... a6 {[%clk 0:00:52.3]} 27. Qb4+ {[%clk 0:00:01.5]} 27... Qxb4 {[%clk
0:00:47.6]} 28. Rxb4 {[%clk 0:00:01.9]} 28... b5 {[%clk 0:00:48.5]} 29. Rb3
{[%clk 0:00:02.1]} 29... Rd5 {[%clk 0:00:45]} 30. Ra3 {[%clk 0:00:02.2]} 30...
Rxe5+ {[%clk 0:00:44.4]} 31. Re3 {[%clk 0:00:03.1]} 31... Rxe3+ {[%clk
0:00:42.2]} 32. Kxe3 {[%clk 0:00:04]} 32... Rc6 {[%clk 0:00:40.4]} 33. Be4
{[%clk 0:00:04.6]} 33... Rb6 {[%clk 0:00:40.2]} 34. Rc3 {[%clk 0:00:05]} 34...
f5 {[%clk 0:00:36.3]} 35. Bf3 {[%clk 0:00:04]} 35... b4 {[%clk 0:00:28.9]} 36.
Rc6 {[%clk 0:00:03.7]} 36... Rxc6 {[%clk 0:00:25.5]} 37. Bxc6 {[%clk 0:00:04.6]}
37... Kd6 {[%clk 0:00:26.4]} 38. Be8 {[%clk 0:00:04.2]} 38... e5 {[%clk
0:00:20.4]} 39. Kd3 {[%clk 0:00:03.5]} 39... e4+ {[%clk 0:00:16.9]} 40. Kd4
{[%clk 0:00:03.5]} 40... a5 {[%clk 0:00:16]} 41. Ba4 {[%clk 0:00:02.8]} 41...
Ke6 {[%clk 0:00:14.7]} 42. Bb3+ {[%clk 0:00:02.1]} 42... Kf6 {[%clk 0:00:15]}
43. Kd5 {[%clk 0:00:02.6]} 43... g4 {[%clk 0:00:15]} 44. Kd4 {[%clk 0:00:02.7]}
44... Kg5 {[%clk 0:00:14.9]} 45. Bf7 {[%clk 0:00:03]} 45... a4 {[%clk
0:00:15.1]} 46. Kc4 {[%clk 0:00:03.2]} 46... b3 {[%clk 0:00:15.1]} 47. Kc3
{[%clk 0:00:03.7]} 47... Kf6 {[%clk 0:00:13.4]} 48. Be8 {[%clk 0:00:03.8]} 48...
f4 {[%clk 0:00:13.1]} 49. Bxa4 {[%clk 0:00:03.4]} 49... b2 {[%clk 0:00:13.2]}
50. Kxb2 {[%clk 0:00:03.2]} 50... e3 {[%clk 0:00:11.2]} 51. fxe3 {[%clk
0:00:02.4]} 51... fxe3 {[%clk 0:00:10.4]} 52. Bd1 {[%clk 0:00:02]} 52... Kg5
{[%clk 0:00:10]} 53. Kc3 {[%clk 0:00:02.5]} 53... Kxh5 {[%clk 0:00:10.5]} 54.
Kd3 {[%clk 0:00:03]} 54... Kh4 {[%clk 0:00:11.4]} 55. Be2 {[%clk 0:00:01.1]}
55... Kg3 {[%clk 0:00:12.3]} 0-1

[Event "*** SCC Grand Prix: Titled Tuesday Blitz"]
[Site "Chess.com"]
[Date "2020.09.08"]
[Round "5"]
[White "Carnivoras"]
[Black "KyrgyzFighter"]
[Result "1/2-1/2"]
[WhiteElo "2632"]
[BlackElo "2352"]
[TimeControl "180+1"]
[EndTime "10:57:28 PDT"]
[Termination "Game drawn by agreement"]

1. d4 {[%clk 0:03:00.9]} 1... d5 {[%clk 0:02:59.8]} 2. c4 {[%clk 0:02:55.9]}
2... c6 {[%clk 0:02:59.1]} 3. Nf3 {[%clk 0:02:54.9]} 3... Nf6 {[%clk 0:02:58.9]}
4. Nc3 {[%clk 0:02:54.5]} 4... a6 {[%clk 0:02:59.2]} 5. c5 {[%clk 0:02:53.1]}
5... Nbd7 {[%clk 0:02:58.1]} 6. Bf4 {[%clk 0:02:53.1]} 6... Nh5 {[%clk
0:02:58.4]} 7. Bc1 {[%clk 0:02:45]} 7... g6 {[%clk 0:02:47.4]} 8. e4 {[%clk
0:02:43]} 8... dxe4 {[%clk 0:02:45]} 9. Nxe4 {[%clk 0:02:43.9]} 9... Bg7 {[%clk
0:02:45.3]} 10. Bc4 {[%clk 0:02:42.9]} 10... O-O {[%clk 0:02:44.6]} 11. O-O
{[%clk 0:02:41.6]} 11... b6 {[%clk 0:02:39.9]} 12. Bg5 {[%clk 0:02:33.4]} 12...
h6 {[%clk 0:02:28.3]} 13. Bh4 {[%clk 0:02:31.1]} 13... bxc5 {[%clk 0:02:22.3]}
14. Nxc5 {[%clk 0:01:49.3]} 14... Nxc5 {[%clk 0:02:14.6]} 15. dxc5 {[%clk
0:01:50.2]} 15... Qxd1 {[%clk 0:02:14]} 16. Raxd1 {[%clk 0:01:48.7]} 16... g5
{[%clk 0:02:14.6]} 17. Bg3 {[%clk 0:01:36.9]} 17... Nxg3 {[%clk 0:02:14.6]} 18.
hxg3 {[%clk 0:01:37.8]} 18... Bxb2 {[%clk 0:02:14.7]} 19. Rfe1 {[%clk
0:01:37.7]} 19... Ra7 {[%clk 0:02:02.3]} 20. Rb1 {[%clk 0:01:19.4]} 20... Ba3
{[%clk 0:01:33.9]} 21. Re5 {[%clk 0:01:05.7]} 21... Kg7 {[%clk 0:01:26.6]} 22.
Nd4 {[%clk 0:01:00.2]} 22... Rc7 {[%clk 0:01:22.1]} 23. Rb6 {[%clk 0:00:42.2]}
23... f6 {[%clk 0:01:12.9]} 24. Ne6+ {[%clk 0:00:40]} 24... Bxe6 {[%clk
0:00:54.7]} 25. Rxe6 {[%clk 0:00:40.9]} 25... Bxc5 {[%clk 0:00:49.3]} 26. Rbxc6
{[%clk 0:00:36.7]} 26... Rxc6 {[%clk 0:00:46]} 27. Rxc6 {[%clk 0:00:37.6]} 27...
Bd4 {[%clk 0:00:42.6]} 28. Bxa6 {[%clk 0:00:32.9]} 28... Rb8 {[%clk 0:00:37.8]}
29. Rc7 {[%clk 0:00:21.3]} 29... Rb1+ {[%clk 0:00:22.5]} 30. Bf1 {[%clk
0:00:20.2]} 30... Kf8 {[%clk 0:00:20.5]} 31. Rc2 {[%clk 0:00:19.2]} 31... Ra1
{[%clk 0:00:19.8]} 32. g4 {[%clk 0:00:19]} 32... e5 {[%clk 0:00:19.9]} 33. g3
{[%clk 0:00:19.2]} 33... Ke7 {[%clk 0:00:20]} 34. Kg2 {[%clk 0:00:19.3]} 34...
Kd6 {[%clk 0:00:20.4]} 35. Bd3 {[%clk 0:00:19.4]} 35... Rd1 {[%clk 0:00:19.6]}
36. Be4 {[%clk 0:00:18.3]} 36... Bc5 {[%clk 0:00:17.1]} 37. a4 {[%clk
0:00:14.2]} 37... Rd4 {[%clk 0:00:17]} 38. Bf5 {[%clk 0:00:08.1]} 38... Rxa4
{[%clk 0:00:17.2]} 39. Rd2+ {[%clk 0:00:08.7]} 39... Bd4 {[%clk 0:00:17.5]} 40.
Rc2 {[%clk 0:00:08.6]} 40... Ra5 {[%clk 0:00:15.7]} 41. Be4 {[%clk 0:00:08.3]}
41... Rc5 {[%clk 0:00:15.8]} 42. Ra2 {[%clk 0:00:08.3]} 42... Rc3 {[%clk
0:00:15.5]} 43. Ra6+ {[%clk 0:00:08.5]} 43... Ke7 {[%clk 0:00:15.7]} 44. Ra2
{[%clk 0:00:08.3]} 44... Rb3 {[%clk 0:00:12.1]} 45. Bd5 {[%clk 0:00:08]} 45...
Rb2 {[%clk 0:00:12.1]} 46. Rxb2 {[%clk 0:00:07.6]} 46... Bxb2 {[%clk 0:00:11.9]}
47. Be4 {[%clk 0:00:07.8]} 47... Kd6 {[%clk 0:00:11.8]} 48. Bf5 {[%clk
0:00:07.9]} 48... Kc5 {[%clk 0:00:11.9]} 49. Kf3 {[%clk 0:00:08.2]} 49... Kd4
{[%clk 0:00:12.5]} 50. Be4 {[%clk 0:00:08.3]} 50... Bc1 {[%clk 0:00:12.2]} 51.
Bf5 {[%clk 0:00:08.5]} 51... Bd2 {[%clk 0:00:12.3]} 52. Bg6 {[%clk 0:00:08.5]}
52... Be1 {[%clk 0:00:11.7]} 53. Ke2 {[%clk 0:00:09]} 53... Bb4 {[%clk
0:00:11.7]} 54. Kf3 {[%clk 0:00:09.3]} 54... Bc5 {[%clk 0:00:11.7]} 55. Bh7
{[%clk 0:00:06.9]} 55... Kc3 {[%clk 0:00:11.1]} 56. Ke2 {[%clk 0:00:07]} 56...
Bd4 {[%clk 0:00:09.9]} 57. f3 {[%clk 0:00:07.1]} 1/2-1/2

[Event "*** SCC Grand Prix: Titled Tuesday Blitz"]
[Site "Chess.com"]
[Date "2020.09.08"]
[Round "5"]
[White "Gvetadze"]
[Black "Margency"]
[Result "1-0"]
[WhiteElo "2450"]
[BlackElo "2649"]
[TimeControl "180+1"]
[EndTime "10:57:33 PDT"]
[Termination "Gvetadze won on time"]

1. e4 {[%clk 0:03:00.9]} 1... c5 {[%clk 0:02:59]} 2. Nf3 {[%clk 0:03:01]} 2...
d6 {[%clk 0:02:58.8]} 3. d4 {[%clk 0:03:00.7]} 3... cxd4 {[%clk 0:02:58.4]} 4.
Nxd4 {[%clk 0:03:01.6]} 4... Nf6 {[%clk 0:02:57]} 5. f3 {[%clk 0:03:02]} 5... e5
{[%clk 0:02:54.4]} 6. Nb3 {[%clk 0:03:02.1]} 6... a5 {[%clk 0:02:52.8]} 7. c4
{[%clk 0:03:00.1]} 7... a4 {[%clk 0:02:52.2]} 8. N3d2 {[%clk 0:02:59.9]} 8...
Nc6 {[%clk 0:02:48.4]} 9. Nc3 {[%clk 0:02:59.4]} 9... Qa5 {[%clk 0:02:47.8]} 10.
a3 {[%clk 0:02:56]} 10... Be7 {[%clk 0:02:47]} 11. Bd3 {[%clk 0:02:55.9]} 11...
Bd8 {[%clk 0:02:46.5]} 12. Bc2 {[%clk 0:02:54.3]} 12... Bb6 {[%clk 0:02:22.4]}
13. Bxa4 {[%clk 0:02:44.2]} 13... O-O {[%clk 0:02:17.5]} 14. b4 {[%clk
0:02:39.8]} 14... Qa7 {[%clk 0:01:41.3]} 15. Bb3 {[%clk 0:02:14.8]} 15... Nxb4
{[%clk 0:01:29.1]} 16. Nb5 {[%clk 0:02:03.1]} 16... Nd3+ {[%clk 0:01:21.7]} 17.
Kf1 {[%clk 0:01:58.9]} 17... Qb8 {[%clk 0:01:21.7]} 18. Qc2 {[%clk 0:01:41.7]}
18... Nxc1 {[%clk 0:01:14.5]} 19. Rxc1 {[%clk 0:01:41.2]} 19... Be6 {[%clk
0:01:06.7]} 20. Qd3 {[%clk 0:01:34.4]} 20... Bc5 {[%clk 0:01:03.4]} 21. a4
{[%clk 0:01:34.6]} 21... Nh5 {[%clk 0:01:00.9]} 22. Nb1 {[%clk 0:01:32.1]} 22...
f5 {[%clk 0:00:57]} 23. N1c3 {[%clk 0:01:29.6]} 23... Nf4 {[%clk 0:00:56.4]} 24.
Qd2 {[%clk 0:01:29.2]} 24... Qd8 {[%clk 0:00:47.6]} 25. g3 {[%clk 0:01:20.4]}
25... Ng6 {[%clk 0:00:41]} 26. exf5 {[%clk 0:01:19]} 26... Bxf5 {[%clk
0:00:39.7]} 27. Kg2 {[%clk 0:01:17]} 27... h5 {[%clk 0:00:23.7]} 28. h4 {[%clk
0:01:15]} 28... Qf6 {[%clk 0:00:22.5]} 29. Nd5 {[%clk 0:01:09.4]} 29... Qf7
{[%clk 0:00:22.4]} 30. Qg5 {[%clk 0:01:06.8]} 30... Be6 {[%clk 0:00:17.1]} 31.
Rhf1 {[%clk 0:00:56.3]} 31... Rae8 {[%clk 0:00:14.3]} 32. Nbc7 {[%clk
0:00:53.3]} 32... Bxd5 {[%clk 0:00:14.5]} 33. Nxd5 {[%clk 0:00:53.3]} 33... Re6
{[%clk 0:00:14.1]} 34. Rce1 {[%clk 0:00:50.8]} 34... Rfe8 {[%clk 0:00:13.1]} 35.
Re4 {[%clk 0:00:50.5]} 35... Nf8 {[%clk 0:00:12.3]} 36. Bc2 {[%clk 0:00:42.5]}
36... Rg6 {[%clk 0:00:11.8]} 37. Qd2 {[%clk 0:00:42.6]} 37... Rge6 {[%clk
0:00:09.7]} 38. Re2 {[%clk 0:00:39.6]} 38... Nd7 {[%clk 0:00:08.6]} 39. Be4
{[%clk 0:00:39.2]} 39... Bd4 {[%clk 0:00:06.3]} 40. Ne3 {[%clk 0:00:37.4]} 40...
Nf6 {[%clk 0:00:04.2]} 41. Bd5 {[%clk 0:00:30.3]} 41... Nxd5 {[%clk 0:00:04.4]}
42. Nxd5 {[%clk 0:00:27.9]} 42... Rg6 {[%clk 0:00:04.8]} 43. Re4 {[%clk
0:00:26.7]} 43... Bc5 {[%clk 0:00:04.7]} 44. Rfe1 {[%clk 0:00:22.1]} 44... Rf8
{[%clk 0:00:04.7]} 45. f4 {[%clk 0:00:21.1]} 45... Qf5 {[%clk 0:00:05]} 46. Qe2
{[%clk 0:00:20.3]} 46... Kh7 {[%clk 0:00:04.6]} 47. Qf3 {[%clk 0:00:20.2]} 47...
Rf7 {[%clk 0:00:02.8]} 48. Rf1 {[%clk 0:00:20.4]} 48... Qg4 {[%clk 0:00:02.6]}
49. Qxg4 {[%clk 0:00:20.2]} 49... Rxg4 {[%clk 0:00:03.5]} 50. Rf3 {[%clk
0:00:16.9]} 50... exf4 {[%clk 0:00:02.9]} 51. Nxf4 {[%clk 0:00:15.5]} 51... b6
{[%clk 0:00:02.4]} 52. Re8 {[%clk 0:00:15.1]} 52... Ra7 {[%clk 0:00:01.3]} 53.
Ne6 {[%clk 0:00:14.7]} 53... Rxa4 {[%clk 0:00:02.2]} 54. Nf8+ {[%clk 0:00:14]}
54... Kh6 {[%clk 0:00:03]} 55. Re6+ {[%clk 0:00:14.3]} 55... g6 {[%clk
0:00:02.8]} 56. Rf7 {[%clk 0:00:14.5]} 56... Ra2+ {[%clk 0:00:01.4]} 57. Kh3
{[%clk 0:00:14.5]} 57... Rh2+ {[%clk 0:00:01.3]} 58. Kxh2 {[%clk 0:00:14.4]} 1-0

[Event "*** SCC Grand Prix: Titled Tuesday Blitz"]
[Site "Chess.com"]
[Date "2020.09.08"]
[Round "5"]
[White "kidagent"]
[Black "MathiasWomacka"]
[Result "1-0"]
[WhiteElo "2287"]
[BlackElo "2408"]
[TimeControl "180+1"]
[EndTime "10:57:38 PDT"]
[Termination "kidagent won on time"]

1. e4 {[%clk 0:03:00.9]} 1... c5 {[%clk 0:02:59.1]} 2. Nf3 {[%clk 0:03:01]} 2...
d6 {[%clk 0:02:58.6]} 3. d4 {[%clk 0:03:01.2]} 3... cxd4 {[%clk 0:02:59.5]} 4.
Nxd4 {[%clk 0:03:01.5]} 4... Nf6 {[%clk 0:03:00.4]} 5. Nc3 {[%clk 0:03:01.7]}
5... a6 {[%clk 0:02:59.8]} 6. Bg5 {[%clk 0:03:01.6]} 6... e6 {[%clk 0:02:59.5]}
7. f4 {[%clk 0:03:01.1]} 7... h6 {[%clk 0:02:58.8]} 8. Bh4 {[%clk 0:03:00.5]}
8... Qb6 {[%clk 0:02:58.4]} 9. a3 {[%clk 0:02:57.6]} 9... Nbd7 {[%clk
0:02:57.3]} 10. Bf2 {[%clk 0:02:56.7]} 10... Qc7 {[%clk 0:02:57]} 11. Bd3 {[%clk
0:02:51.7]} 11... b5 {[%clk 0:02:55.4]} 12. O-O {[%clk 0:02:50.2]} 12... Bb7
{[%clk 0:02:55.4]} 13. Qe2 {[%clk 0:02:47.6]} 13... Be7 {[%clk 0:02:55.2]} 14.
Rae1 {[%clk 0:02:46.3]} 14... O-O {[%clk 0:02:54.5]} 15. Kh1 {[%clk 0:02:40.7]}
15... Rac8 {[%clk 0:02:42.9]} 16. e5 {[%clk 0:02:35.7]} 16... dxe5 {[%clk
0:02:41.8]} 17. fxe5 {[%clk 0:02:36.6]} 17... Nd5 {[%clk 0:02:39.4]} 18. Qe4
{[%clk 0:02:21.7]} 18... g6 {[%clk 0:02:39.3]} 19. Nxd5 {[%clk 0:02:20.6]} 19...
Bxd5 {[%clk 0:02:39.5]} 20. Qe3 {[%clk 0:02:18.4]} 20... Bg5 {[%clk 0:02:31.4]}
21. Qg3 {[%clk 0:02:17.9]} 21... Nc5 {[%clk 0:02:20.2]} 22. h4 {[%clk
0:02:02.7]} 22... Nxd3 {[%clk 0:02:20]} 23. cxd3 {[%clk 0:01:58.7]} 23... Be7
{[%clk 0:02:10.7]} 24. Be3 {[%clk 0:01:54.7]} 24... Kh7 {[%clk 0:01:58.1]} 25.
Qf4 {[%clk 0:01:47.6]} 25... h5 {[%clk 0:01:38.4]} 26. Qh6+ {[%clk 0:01:45.1]}
26... Kg8 {[%clk 0:01:38.4]} 27. Bg5 {[%clk 0:01:45]} 27... Bxg5 {[%clk
0:01:30]} 28. Qxg5 {[%clk 0:01:42.9]} 28... Rcd8 {[%clk 0:01:06.8]} 29. Rf4
{[%clk 0:01:36.4]} 29... Bb7 {[%clk 0:00:58.3]} 30. Qg3 {[%clk 0:01:30.2]} 30...
Rd5 {[%clk 0:00:54.8]} 31. Rfe4 {[%clk 0:01:08.6]} 31... Rc5 {[%clk 0:00:51.9]}
32. R4e2 {[%clk 0:01:05.5]} 32... Rc1 {[%clk 0:00:50]} 33. Kh2 {[%clk
0:00:59.6]} 33... Rxe1 {[%clk 0:00:48.3]} 34. Rxe1 {[%clk 0:00:58.4]} 34... Rd8
{[%clk 0:00:44]} 35. Ne2 {[%clk 0:00:52.3]} 35... Qe7 {[%clk 0:00:16.1]} 36. Nf4
{[%clk 0:00:50.6]} 36... Rd4 {[%clk 0:00:15.3]} 37. Rf1 {[%clk 0:00:39.6]} 37...
Kh7 {[%clk 0:00:15.4]} 38. Kh3 {[%clk 0:00:34.7]} 38... Bc6 {[%clk 0:00:13.3]}
39. Ne2 {[%clk 0:00:32.3]} 39... Rd5 {[%clk 0:00:12.1]} 40. d4 {[%clk
0:00:31.9]} 40... Rd7 {[%clk 0:00:10.7]} 41. Qf4 {[%clk 0:00:26.2]} 41... Bd5
{[%clk 0:00:09.8]} 42. Ng3 {[%clk 0:00:20.6]} 42... Bc4 {[%clk 0:00:09.9]} 43.
Rf2 {[%clk 0:00:20]} 43... Qd8 {[%clk 0:00:09.9]} 44. Rd2 {[%clk 0:00:18]} 44...
Qb6 {[%clk 0:00:07.1]} 45. Ne4 {[%clk 0:00:17.4]} 45... Kg7 {[%clk 0:00:05.3]}
46. Nf6 {[%clk 0:00:17.2]} 46... Rd8 {[%clk 0:00:05.3]} 47. Qe3 {[%clk
0:00:14.4]} 47... Qc6 {[%clk 0:00:04.7]} 48. b3 {[%clk 0:00:13.5]} 48... Bd5
{[%clk 0:00:04]} 49. b4 {[%clk 0:00:13.8]} 49... Qc1 {[%clk 0:00:03.2]} 50. Qg5
{[%clk 0:00:12.8]} 50... Qh1+ {[%clk 0:00:02.9]} 51. Kg3 {[%clk 0:00:11.3]}
51... Qe1+ {[%clk 0:00:03.8]} 52. Kh3 {[%clk 0:00:10.9]} 52... Qh1+ {[%clk
0:00:01.7]} 53. Kg3 {[%clk 0:00:11.1]} 53... Qe1+ {[%clk 0:00:02.5]} 54. Kh3
{[%clk 0:00:10.8]} 54... Rc8 {[%clk 0:00:03.1]} 55. Nxh5+ {[%clk 0:00:09.6]}
55... Kf8 {[%clk 0:00:03.2]} 56. Ng3 {[%clk 0:00:08.7]} 56... Rc1 {[%clk
0:00:01.8]} 57. Rd3 {[%clk 0:00:08.2]} 1-0

[Event "*** SCC Grand Prix: Titled Tuesday Blitz"]
[Site "Chess.com"]
[Date "2020.09.08"]
[Round "5"]
[White "BocharovD"]
[Black "Rodchenkov_Vitalij"]
[Result "1/2-1/2"]
[WhiteElo "2792"]
[BlackElo "2579"]
[TimeControl "180+1"]
[EndTime "10:57:40 PDT"]
[Termination "Game drawn by repetition"]

1. c4 {[%clk 0:03:00.9]} 1... e6 {[%clk 0:02:57.7]} 2. Nf3 {[%clk 0:03:00.4]}
2... d5 {[%clk 0:02:57.7]} 3. e3 {[%clk 0:03:00.7]} 3... Nf6 {[%clk 0:02:57.4]}
4. b3 {[%clk 0:03:00.6]} 4... Be7 {[%clk 0:02:57.6]} 5. Bb2 {[%clk 0:03:00]}
5... O-O {[%clk 0:02:58]} 6. Nc3 {[%clk 0:02:59.3]} 6... b6 {[%clk 0:02:57.7]}
7. cxd5 {[%clk 0:02:56]} 7... Nxd5 {[%clk 0:02:56.6]} 8. Nxd5 {[%clk 0:02:54.3]}
8... Qxd5 {[%clk 0:02:43.3]} 9. Bc4 {[%clk 0:02:51.6]} 9... Qd8 {[%clk
0:02:42.9]} 10. O-O {[%clk 0:02:50]} 10... Bb7 {[%clk 0:02:42.5]} 11. Qe2 {[%clk
0:02:38.3]} 11... Nd7 {[%clk 0:02:37.5]} 12. d4 {[%clk 0:02:38]} 12... Nf6
{[%clk 0:02:14.3]} 13. Rfd1 {[%clk 0:02:35.8]} 13... Bd6 {[%clk 0:02:08.8]} 14.
Rac1 {[%clk 0:02:22.5]} 14... Qe7 {[%clk 0:02:06.6]} 15. Bd3 {[%clk 0:02:22.5]}
15... Ne4 {[%clk 0:01:56.1]} 16. Ne5 {[%clk 0:02:20.2]} 16... c5 {[%clk
0:01:46.5]} 17. f3 {[%clk 0:01:30]} 17... cxd4 {[%clk 0:01:32.4]} 18. Nc4 {[%clk
0:00:48.4]} 18... Nc5 {[%clk 0:00:48.1]} 19. Nxd6 {[%clk 0:00:43.7]} 19... Nxd3
{[%clk 0:00:39.4]} 20. Rxd3 {[%clk 0:00:41.2]} 20... Qxd6 {[%clk 0:00:38.8]} 21.
Rxd4 {[%clk 0:00:25.7]} 21... Qe7 {[%clk 0:00:38.9]} 22. Rcd1 {[%clk 0:00:24.6]}
22... Rfd8 {[%clk 0:00:35.7]} 23. Ba3 {[%clk 0:00:21.8]} 23... Qe8 {[%clk
0:00:35.3]} 24. Bd6 {[%clk 0:00:21]} 24... Rac8 {[%clk 0:00:27]} 25. e4 {[%clk
0:00:20.2]} 25... h6 {[%clk 0:00:18.7]} 26. Qd2 {[%clk 0:00:20]} 26... Rd7
{[%clk 0:00:18.3]} 27. Be5 {[%clk 0:00:18.8]} 27... Rxd4 {[%clk 0:00:17.9]} 28.
Qxd4 {[%clk 0:00:19.3]} 28... f6 {[%clk 0:00:16.9]} 29. Bd6 {[%clk 0:00:19.5]}
29... e5 {[%clk 0:00:17.3]} 30. Qd3 {[%clk 0:00:19.2]} 30... Qc6 {[%clk
0:00:17.5]} 31. Rd2 {[%clk 0:00:16.8]} 31... Kh7 {[%clk 0:00:16.5]} 32. h3
{[%clk 0:00:15.4]} 32... Qc1+ {[%clk 0:00:16.4]} 33. Kh2 {[%clk 0:00:15.6]}
33... Qa1 {[%clk 0:00:13.5]} 34. Rc2 {[%clk 0:00:10.2]} 34... Qb1 {[%clk
0:00:11.1]} 35. Rd2 {[%clk 0:00:09.2]} 35... Qxd3 {[%clk 0:00:11.1]} 36. Rxd3
{[%clk 0:00:10.1]} 36... Rc2 {[%clk 0:00:11.6]} 37. a4 {[%clk 0:00:09.7]} 37...
Ba6 {[%clk 0:00:12.3]} 38. Rd1 {[%clk 0:00:09.6]} 38... Be2 {[%clk 0:00:11.8]}
39. Rg1 {[%clk 0:00:06.5]} 39... Bxf3 {[%clk 0:00:11.9]} 40. Kg3 {[%clk
0:00:07.4]} 40... Bxe4 {[%clk 0:00:12.1]} 41. Bb8 {[%clk 0:00:08.3]} 41... a6
{[%clk 0:00:11.5]} 42. Ba7 {[%clk 0:00:08]} 42... Rc3+ {[%clk 0:00:11.7]} 43.
Kf2 {[%clk 0:00:07.6]} 43... Rxb3 {[%clk 0:00:12.3]} 44. Rc1 {[%clk 0:00:07.9]}
44... Bd3 {[%clk 0:00:12.1]} 45. g4 {[%clk 0:00:07.9]} 45... e4 {[%clk
0:00:12.1]} 46. Rc7 {[%clk 0:00:07.8]} 46... b5 {[%clk 0:00:12.6]} 47. Bd4
{[%clk 0:00:07]} 47... bxa4 {[%clk 0:00:11.2]} 48. Bxf6 {[%clk 0:00:06.6]} 48...
Kg6 {[%clk 0:00:09]} 49. Bd4 {[%clk 0:00:05.3]} 49... e3+ {[%clk 0:00:03.1]} 50.
Kxe3 {[%clk 0:00:04.2]} 50... Bc4+ {[%clk 0:00:03.4]} 51. Kf4 {[%clk 0:00:04.1]}
51... Bf7 {[%clk 0:00:04.1]} 52. h4 {[%clk 0:00:04.4]} 52... Rb4 {[%clk
0:00:03.7]} 53. h5+ {[%clk 0:00:04.7]} 53... Kh7 {[%clk 0:00:04.2]} 54. Ke3
{[%clk 0:00:05.2]} 54... Kg8 {[%clk 0:00:04.6]} 55. Rc8+ {[%clk 0:00:05.1]}
55... Kh7 {[%clk 0:00:05]} 56. Rc7 {[%clk 0:00:05.8]} 56... Kg8 {[%clk
0:00:05.4]} 57. Rc8+ {[%clk 0:00:06.2]} 57... Kh7 {[%clk 0:00:05.7]} 58. Rc7
{[%clk 0:00:06.2]} 1/2-1/2